[Event "Marshall CC FIDE Premier January 2024"]
[Site "New York"]
[Date "2024.01.06"]
[Round "1.1"]
[White "Bortnyk, Mykola"]
[Black "Das, Aditeya"]
[Result "1-0"]
[ECO "B97"]
[WhiteElo "2421"]
[BlackElo "1791"]
[Annotator "RC"]
[PlyCount "77"]
[EventDate "2024.01.05"]
[EventType "swiss"]
[EventCountry "USA"]
[SourceTitle "playchess.com"]
[Source "ChessBase"]
[SourceQuality "1"]
[TimeControl "5400+30"]

1. e4 {[%emt 0:00:05]} c5 {[%emt 0:00:03]} 2. Nf3 {[%emt 0:00:17]} d6 {[%emt 0:00:05]} 3. d4 {[%emt 0:00:10]} cxd4 {[%emt 0:00:05]} 4. Nxd4 {[%emt 0:00:05]} Nf6 {[%emt 0:00:05]} 5. Nc3 {[%emt 0:00:08]} a6 {[%emt 0:00:04]} 6. Bg5 {[%emt 0:00:10]} e6 {[%emt 0:00:04]} 7. f4 {[%emt 0:00:08]} Qb6 {[%emt 0:00:04]} 8. Qd2 {[%emt 0:00:22]} Qxb2 {[%emt 0:00:08]} 9. Rb1 {[%emt 0:00:04]} Qa3 {[%emt 0:00:05]} 10. e5 {[%emt 0:00:07]} dxe5 {[%emt 0:01:14]} 11. fxe5 {[%emt 0:00:44]} Nd5 {[%emt 0:00:56]} 12. Nxd5 {[%emt 0:04:10]} exd5 {[%emt 0:00:03]} 13. c4 {[%emt 0:03:04]} Be7 {[%emt 0:04:13]} 14. h4 {[%emt 0:02:50]} Bxg5 {[%emt 0:01:10]} 15. hxg5 {[%emt 0:00:30]} Qe7 {[%emt 0:00:55]} 16. cxd5 {[%emt 0:03:11]} Qxe5+ {[%emt 0:01:48]} 17. Kf2 {[%emt 0:00:03]} O-O {[%emt 0:01:58]} 18. Nf3 {[%emt 0:00:24]} Qd6 {[%emt 0:00:34]} 19. Bd3 {[%emt 0:01:11]} g6 {[%emt 0:01:48]} 20. Qc3 {[%emt 0:01:33]} f6 {[%emt 0:03:13]} 21. Rh6 {[%emt 0:01:13]} Nd7 {[%emt 0:00:07]} 22. Rbh1 {[%emt 0:00:59]} Rf7 {[%emt 0:01:08]} 23. Bxg6 {[%emt 0:00:18]} Rg7 {[%emt 0:03:34]} 24. Bxh7+ {[%emt 0:01:46]} Kf7 {[%emt 0:02:25]} 25. Bf5 {[%emt 0:01:59]} Qc5+ {[%emt 0:03:07]} 26. Qxc5 {[%emt 0:00:33]} Nxc5 {[%emt 0:00:05]} 27. gxf6 {[%emt 0:00:07]} Bxf5 {[%emt 0:01:42]} 28. Ne5+ {[%emt 0:00:06]} Kf8 {[%emt 0:00:05]} 29. Rh8+ {[%emt 0:01:13]} Rg8 {[%emt 0:00:04]} 30. f7 {[%emt 0:00:03]} Kg7 {[%emt 0:03:43]} 31. Rxg8+ {[%emt 0:00:11]} Rxg8 {[%emt 0:00:07]} 32. fxg8=Q+ {[%emt 0:00:06]} Kxg8 {[%emt 0:00:04]} 33. Ke3 {[%emt 0:00:08]} Kg7 {[%emt 0:01:30]} 34. Rf1 {[%emt 0:00:06]} Bg6 {[%emt 0:01:12]} 35. Rc1 {[%emt 0:00:22]} b6 {[%emt 0:00:04]} 36. Nxg6 {[%emt 0:00:07]} Kxg6 {[%emt 0:00:04]} 37. Rxc5 {[%emt 0:00:04]} bxc5 {[%emt 0:00:11]} 38. Kd3 {[%emt 0:00:05]} Kf5 {[%emt 0:00:22]} 39. Kc4 {[%emt 0:00:01]} 1-0

[Event "Marshall CC FIDE Premier January 2024"]
[Site "New York"]
[Date "2024.01.06"]
[Round "1.2"]
[White "Marsh, James J"]
[Black "Zeltsan, Joseph"]
[Result "0-1"]
[ECO "E05"]
[WhiteElo "1987"]
[BlackElo "2439"]
[Annotator "RC"]
[PlyCount "126"]
[EventDate "2024.01.05"]
[EventType "swiss"]
[EventCountry "USA"]
[SourceTitle "playchess.com"]
[Source "ChessBase"]
[SourceQuality "1"]
[TimeControl "5400+30"]

1. Nf3 {[%emt 0:00:30]} d5 {[%emt 0:04:02]} 2. g3 {[%emt 0:00:00]} Nf6 {[%emt 0:00:12]} 3. Bg2 {[%emt 0:00:01]} e6 {[%emt 0:00:05]} 4. O-O {[%emt 0:00:42]} Be7 {[%emt 0:00:10]} 5. c4 {[%emt 0:00:11]} O-O {[%emt 0:00:04]} 6. d4 {[%emt 0:00:16]} dxc4 {[%emt 0:00:07]} 7. Qc2 {[%emt 0:01:04]} a6 {[%emt 0:00:01]} 8. a4 {[%emt 0:01:08]} Bd7 {[%emt 0:00:02]} 9. Rd1 {[%emt 0:03:14]} Bc6 {[%emt 0:03:43]} 10. Bg5 {[%emt 0:01:08]} Nbd7 {[%emt 0:07:41]} 11. Qxc4 {[%emt 0:03:21]} h6 {[%emt 0:18:30]} 12. Bxf6 {[%emt 0:01:13]} Nxf6 {[%emt 0:00:02]} 13. e3 {[%emt 0:01:57]} Bd5 {[%emt 0:09:20]} 14. Qe2 {[%emt 0:01:39]} c5 {[%emt 0:06:40]} 15. Nc3 {[%emt 0:10:19]} Bc6 {[%emt 0:00:17]} 16. dxc5 {[%emt 0:04:16]} Qa5 {[%emt 0:00:22]} 17. Nd4 {[%emt 0:14:40]} Bxg2 {[%emt 0:00:24]} 18. Kxg2 {[%emt 0:00:02]} Qxc5 {[%emt 0:00:47]} 19. Qc2 {[%emt 0:06:02]} Rac8 {[%emt 0:05:31]} 20. Qb3 {[%emt 0:00:48]} Qb4 {[%emt 0:00:17]} 21. Rac1 {[%emt 0:04:52]} Qxb3 {[%emt 0:15:45]} 22. Nxb3 {[%emt 0:02:24]} Rc6 {[%emt 0:03:40]} 23. Rd3 {[%emt 0:15:31]} Rb6 {[%emt 0:02:38]} 24. Na2 {[%emt 0:02:00]} Ng4 {[%emt 0:05:04]} 25. Rc2 {[%emt 0:04:40]} Bf6 {[%emt 0:05:28]} 26. Na5 {[%emt 0:04:24]} Ne5 {[%emt 0:01:02]} 27. Rb3 {[%emt 0:00:21]} Rxb3 {[%emt 0:00:29]} 28. Nxb3 {[%emt 0:00:02]} Nd3 {[%emt 0:00:02]} 29. Rc7 {[%emt 0:05:07]} b5 {[%emt 0:02:59]} 30. Nc5 {[%emt 0:05:31]} Nxb2 {[%emt 0:02:34]} 31. axb5 {[%emt 0:00:43]} axb5 {[%emt 0:00:03]} 32. Rb7 {[%emt 0:00:19]} Rc8 {[%emt 0:05:40]} 33. Rxb5 {[%emt 0:00:09]} Nd1 {[%emt 0:01:55]} 34. Ne4 {[%emt 0:07:25]} Nxe3+ {[%emt 0:01:02]} 35. fxe3 {[%emt 0:01:20]} Rc2+ {[%emt 0:00:01]} 36. Kf3 {[%emt 0:00:06]} Rxa2 {[%emt 0:00:06]} 37. Nxf6+ {[%emt 0:00:08]} gxf6 {[%emt 0:00:02]} 38. h4 {[%emt 0:00:14]} f5 {[%emt 0:00:19]} 39. g4 {[%emt 0:01:31]} fxg4+ {[%emt 0:00:29]} 40. Kxg4 {[%emt 0:00:01]} Ra4+ {[%emt 0:00:45]} 41. Kg3 {[%emt 0:01:03]} Re4 {[%emt 0:00:11]} 42. Rb3 {[%emt 0:00:06]} Kg7 {[%emt 0:00:16]} 43. Ra3 {[%emt 0:00:49]} Kg6 {[%emt 0:00:13]} 44. Rb3 {[%emt 0:00:36]} Kh5 {[%emt 0:00:21]} 45. Rc3 {[%emt 0:00:27]} f5 {[%emt 0:00:41]} 46. Kf3 {[%emt 0:00:16]} Kxh4 {[%emt 0:00:08]} 47. Rc8 {[%emt 0:00:23]} Kg5 {[%emt 0:01:47]} 48. Re8 {[%emt 0:00:31]} h5 {[%emt 0:00:14]} 49. Re7 {[%emt 0:00:21]} Kf6 {[%emt 0:00:10]} 50. Rh7 {[%emt 0:00:07]} h4 {[%emt 0:00:02]} 51. Rh8 {[%emt 0:00:26]} Rg4 {[%emt 0:00:08]} 52. Rh6+ {[%emt 0:00:19]} Ke5 {[%emt 0:00:09]} 53. Kf2 {[%emt 0:00:16]} Kd5 {[%emt 0:00:14]} 54. Kf3 {[%emt 0:00:54]} Rg3+ {[%emt 0:02:24]} 55. Kf4 {[%emt 0:00:44]} Rg4+ {[%emt 0:01:09]} 56. Kf3 {[%emt 0:00:02]} Ke5 {[%emt 0:00:01]} 57. Kf2 {[%emt 0:00:11]} Rb4 {[%emt 0:00:06]} 58. Ke2 {[%emt 0:00:24]} Rb2+ {[%emt 0:00:29]} 59. Kf3 {[%emt 0:00:02]} Rh2 {[%emt 0:00:02]} 60. Rg6 {[%emt 0:01:01]} h3 {[%emt 0:01:48]} 61. Rh6 {[%emt 0:00:07]} Rh1 {[%emt 0:00:15]} 62. Rh4 {[%emt 0:00:49]} h2 {[%emt 0:00:13]} 63. Kf2 {[%emt 0:00:40]} Ra1 {[%emt 0:02:39]} 0-1

[Event "Marshall CC FIDE Premier January 2024"]
[Site "New York"]
[Date "2024.01.06"]
[Round "1.3"]
[White "Brain, Logan"]
[Black "Panuganti, Kireet"]
[Result "1/2-1/2"]
[ECO "A21"]
[WhiteElo "2111"]
[BlackElo "1960"]
[Annotator "RC"]
[PlyCount "95"]
[EventDate "2024.01.05"]
[EventType "swiss"]
[EventCountry "USA"]
[SourceTitle "playchess.com"]
[Source "ChessBase"]
[SourceQuality "1"]
[TimeControl "5400+30"]

1. c4 {[%emt 0:04:40]} g6 {[%emt 0:00:45]} 2. g3 {[%emt 0:01:02]} Bg7 {[%emt 0:00:07]} 3. Bg2 {[%emt 0:00:19]} e5 {[%emt 0:00:54]} 4. Nc3 {[%emt 0:00:07]} d6 {[%emt 0:00:12]} 5. e3 {[%emt 0:00:10]} f5 {[%emt 0:04:23]} 6. Nge2 {[%emt 0:00:15]} Nf6 {[%emt 0:00:10]} 7. b3 {[%emt 0:01:32]} O-O {[%emt 0:00:59]} 8. O-O {[%emt 0:00:17]} e4 {[%emt 0:08:32]} 9. d3 {[%emt 0:03:46]} Nbd7 {[%emt 0:06:07]} 10. Bb2 {[%emt 0:07:31]} Re8 {[%emt 0:16:02]} 11. dxe4 {[%emt 0:06:08]} fxe4 {[%emt 0:00:32]} 12. Nf4 {[%emt 0:01:01]} a5 {[%emt 0:17:07]} 13. Qc2 {[%emt 0:07:21]} Nc5 {[%emt 0:02:11]} 14. Ncd5 {[%emt 0:06:28]} Ng4 {[%emt 0:06:31]} 15. Bxg7 {[%emt 0:02:20]} Kxg7 {[%emt 0:00:03]} 16. a3 {[%emt 0:04:42]} c6 {[%emt 0:08:42]} 17. b4 {[%emt 0:09:02]} axb4 {[%emt 0:03:15]} 18. axb4 {[%emt 0:00:20]} Rxa1 {[%emt 0:01:29]} 19. Rxa1 {[%emt 0:00:25]} Na6 {[%emt 0:03:03]} 20. b5 {[%emt 0:05:24]} Nc5 {[%emt 0:01:34]} 21. bxc6 {[%emt 0:00:22]} bxc6 {[%emt 0:00:06]} 22. Ra7+ {[%emt 0:09:06]} Bd7 {[%emt 0:01:14]} 23. Bh3 {[%emt 0:04:12]} Nf6 {[%emt 0:06:10]} 24. Nxf6 {[%emt 0:02:12]} Kxf6 {[%emt 0:00:20]} 25. Qb2+ {[%emt 0:01:52]} Re5 {[%emt 0:09:04]} 26. Bxd7 {[%emt 0:01:15]} Nxd7 {[%emt 0:00:08]} 27. Qb7 {[%emt 0:01:03]} Re7 {[%emt 0:03:16]} 28. Qxc6 {[%emt 0:05:24]} Ne5 {[%emt 0:00:04]} 29. Nd5+ {[%emt 0:02:03]} Kg5 {[%emt 0:00:07]} 30. Qa6 {[%emt 0:01:45]} Rxa7 {[%emt 0:00:11]} 31. Qxa7 {[%emt 0:00:05]} Qd7 {[%emt 0:01:45]} 32. h4+ {[%emt 0:03:12]} Kh6 {[%emt 0:00:51]} 33. Qb8 {[%emt 0:01:31]} Nf3+ {[%emt 0:00:07]} 34. Kg2 {[%emt 0:00:28]} Nxh4+ {[%emt 0:00:10]} 35. Kf1 {[%emt 0:04:31]} Nf5 {[%emt 0:01:07]} 36. Qf8+ {[%emt 0:00:42]} Qg7 {[%emt 0:00:25]} 37. Qd8 {[%emt 0:02:40]} Qa1+ {[%emt 0:00:18]} 38. Kg2 {[%emt 0:00:48]} Qd1 {[%emt 0:00:28]} 39. Qf8+ {[%emt 0:00:15]} Kg5 {[%emt 0:00:07]} 40. Qd8+ {[%emt 0:00:50]} Kh6 {[%emt 0:00:25]} 41. Qf8+ {[%emt 0:01:01]} Kg5 {[%emt 0:00:05]} 42. Qf6+ {[%emt 0:02:17]} Kg4 {[%emt 0:01:34]} 43. Qe6 {[%emt 0:00:17]} Qf3+ {[%emt 0:00:20]} 44. Kg1 {[%emt 0:00:06]} Kh3 {[%emt 0:00:56]} 45. Nf4+ {[%emt 0:00:07]} Kg4 {[%emt 0:00:05]} 46. Nd5 {[%emt 0:01:47]} Kh3 {[%emt 0:00:05]} 47. Nf4+ {[%emt 0:00:03]} Kg4 {[%emt 0:00:07]} 48. Nd5 {[%emt 0:01:04]} 1/2-1/2

[Event "Marshall CC FIDE Premier January 2024"]
[Site "New York"]
[Date "2024.01.06"]
[Round "1.4"]
[White "Mottola, Max"]
[Black "Yoo, Eugene"]
[Result "0-1"]
[ECO "D00"]
[WhiteElo "1977"]
[BlackElo "2168"]
[Annotator "RC"]
[PlyCount "64"]
[EventDate "2024.01.05"]
[EventType "swiss"]
[EventCountry "USA"]
[SourceTitle "playchess.com"]
[Source "ChessBase"]
[SourceQuality "1"]
[TimeControl "5400+30"]

1. d4 {[%emt 0:00:08]} Nf6 {[%emt 0:15:17]} 2. Nc3 {[%emt 0:00:12]} d5 {[%emt 0:00:01]} 3. Bf4 {[%emt 0:00:11]} a6 {[%emt 0:00:02]} 4. e3 {[%emt 0:00:10]} b5 {[%emt 0:00:42]} 5. h4 {[%emt 0:08:07]} c5 {[%emt 0:12:31]} 6. dxc5 {[%emt 0:03:27]} Nc6 {[%emt 0:23:26]} 7. Nf3 {[%emt 0:02:45]} Bg4 {[%emt 0:04:23]} 8. Be2 {[%emt 0:04:01]} b4 {[%emt 0:07:43]} 9. Na4 {[%emt 0:16:04]} Qa5 {[%emt 0:11:18]} 10. b3 {[%emt 0:09:03]} Bxf3 {[%emt 0:01:33]} 11. Bxf3 {[%emt 0:01:16]} e6 {[%emt 0:00:17]} 12. Nb6 {[%emt 0:04:26]} Ra7 {[%emt 0:01:00]} 13. Nc8 {[%emt 0:00:17]} Rd7 {[%emt 0:01:40]} 14. Nd6+ {[%emt 0:09:15]} Kd8 {[%emt 0:01:41]} 15. e4 {[%emt 0:05:25]} Qxc5 {[%emt 0:04:41]} 16. exd5 {[%emt 0:03:20]} Nd4 {[%emt 0:02:00]} 17. dxe6 {[%emt 0:11:10]} Rxd6 {[%emt 0:01:54]} 18. Bxd6 {[%emt 0:00:49]} Qc3+ {[%emt 0:01:25]} 19. Kf1 {[%emt 0:00:02]} Bxd6 {[%emt 0:00:02]} 20. exf7 {[%emt 0:02:06]} Ke7 {[%emt 0:03:29]} 21. Rh3 {[%emt 0:00:32]} Be5 {[%emt 0:02:25]} 22. Be2 {[%emt 0:06:41]} Qc5 {[%emt 0:00:01]} 23. Bd3 {[%emt 0:03:34]} Rd8 {[%emt 0:00:43]} 24. Qe1 {[%emt 0:01:29]} Kxf7 {[%emt 0:00:25]} 25. Rd1 {[%emt 0:02:02]} Re8 {[%emt 0:01:23]} 26. Re3 {[%emt 0:01:18]} Ng4 {[%emt 0:00:32]} 27. Rh3 {[%emt 0:02:39]} Bf4 {[%emt 0:01:19]} 28. Be4 {[%emt 0:00:29]} Nxc2 {[%emt 0:01:45]} 29. Qe2 {[%emt 0:00:36]} Rxe4 {[%emt 0:00:03]} 30. Qxg4 {[%emt 0:00:20]} Qb5+ {[%emt 0:00:12]} 31. Rhd3 {[%emt 0:01:04]} Qxd3+ {[%emt 0:00:03]} 32. Rxd3 {[%emt 0:00:06]} Re1# {[%emt 0:00:02]} 0-1

[Event "Marshall CC FIDE Premier January 2024"]
[Site "New York"]
[Date "2024.01.06"]
[Round "1.5"]
[White "Johnston, Daniel"]
[Black "Subervi, Jonathan Sigfredo"]
[Result "1-0"]
[ECO "C00"]
[WhiteElo "2066"]
[BlackElo "2019"]
[Annotator "RC"]
[PlyCount "73"]
[EventDate "2024.01.05"]
[EventType "swiss"]
[EventCountry "USA"]
[SourceTitle "playchess.com"]
[Source "ChessBase"]
[SourceQuality "1"]
[TimeControl "5400+30"]

1. e4 {[%emt 0:05:11]} c5 {[%emt 0:13:58]} 2. Nf3 {[%emt 0:00:05]} e6 {[%emt 0:01:38]} 3. d3 {[%emt 0:03:06]} Nc6 {[%emt 0:01:27]} 4. g3 {[%emt 0:01:09]} d5 {[%emt 0:03:01]} 5. Nbd2 {[%emt 0:00:25]} Nf6 {[%emt 0:03:05]} 6. Bg2 {[%emt 0:00:15]} Be7 {[%emt 0:00:12]} 7. O-O {[%emt 0:00:13]} O-O {[%emt 0:00:20]} 8. e5 {[%emt 0:01:42]} Ne8 {[%emt 0:04:47]} 9. c3 {[%emt 0:08:08]} Nc7 {[%emt 0:02:45]} 10. Re1 {[%emt 0:02:39]} b5 {[%emt 0:00:50]} 11. Nf1 {[%emt 0:01:35]} Ba6 {[%emt 0:10:51]} 12. h4 {[%emt 0:02:02]} b4 {[%emt 0:12:34]} 13. N1h2 {[%emt 0:02:12]} Rb8 {[%emt 0:18:33]} 14. Ng5 {[%emt 0:19:02]} h6 {[%emt 0:09:47]} 15. Ngf3 {[%emt 0:04:27]} bxc3 {[%emt 0:06:25]} 16. bxc3 {[%emt 0:00:07]} f5 {[%emt 0:04:48]} 17. exf6 {[%emt 0:11:06]} Bxf6 {[%emt 0:01:14]} 18. d4 {[%emt 0:00:09]} cxd4 {[%emt 0:01:47]} 19. cxd4 {[%emt 0:00:29]} Re8 {[%emt 0:01:24]} 20. Ng4 {[%emt 0:01:55]} Nb5 {[%emt 0:00:09]} 21. Nxf6+ {[%emt 0:23:18]} Qxf6 {[%emt 0:00:02]} 22. Bf4 {[%emt 0:00:04]} Rb6 {[%emt 0:01:10]} 23. Ne5 {[%emt 0:02:47]} Nxe5 {[%emt 0:00:02]} 24. Bxe5 {[%emt 0:01:27]} Qf5 {[%emt 0:00:07]} 25. Re3 {[%emt 0:03:14]} Rc8 {[%emt 0:01:17]} 26. Rc1 {[%emt 0:04:53]} Rxc1 {[%emt 0:00:19]} 27. Qxc1 {[%emt 0:00:02]} Nxd4 {[%emt 0:00:51]} 28. Qc7 {[%emt 0:00:10]} Qb1+ {[%emt 0:00:05]} 29. Kh2 {[%emt 0:00:09]} Nf5 {[%emt 0:00:02]} 30. g4 {[%emt 0:01:36]} Rb7 {[%emt 0:00:23]} 31. Qd8+ {[%emt 0:00:25]} Kh7 {[%emt 0:00:01]} 32. gxf5 {[%emt 0:00:14]} Qxf5 {[%emt 0:00:12]} 33. Bg3 {[%emt 0:00:39]} Rb6 {[%emt 0:00:14]} 34. Rf3 {[%emt 0:00:31]} Qg4 {[%emt 0:02:18]} 35. Rf4 {[%emt 0:00:45]} Qe2 {[%emt 0:00:10]} 36. Rf8 {[%emt 0:00:48]} Bb5 {[%emt 0:01:10]} 37. Bf3 {[%emt 0:00:37]} 1-0

[Event "Marshall CC FIDE Premier January 2024"]
[Site "New York"]
[Date "2024.01.06"]
[Round "2.1"]
[White "Safranek, William"]
[Black "Bortnyk, Mykola"]
[Result "0-1"]
[ECO "B06"]
[WhiteElo "1908"]
[BlackElo "2421"]
[Annotator "RC"]
[PlyCount "144"]
[EventDate "2024.01.05"]
[EventType "swiss"]
[EventCountry "USA"]
[SourceTitle "playchess.com"]
[Source "ChessBase"]
[SourceQuality "1"]
[TimeControl "5400+30"]

1. e4 {[%emt 0:00:03]} g6 {[%emt 0:04:54]} 2. d4 {[%emt 0:00:09]} Bg7 {[%emt 0:00:11]} 3. Nc3 {[%emt 0:00:22]} d6 {[%emt 0:00:07]} 4. h3 {[%emt 0:02:42]} c6 {[%emt 0:00:36]} 5. a4 {[%emt 0:01:16]} a5 {[%emt 0:01:17]} 6. Be3 {[%emt 0:01:36]} Na6 {[%emt 0:06:08]} 7. f4 {[%emt 0:09:03]} Nf6 {[%emt 0:03:53]} 8. Nf3 {[%emt 0:10:04]} Nb4 {[%emt 0:03:34]} 9. g4 {[%emt 0:04:47]} d5 {[%emt 0:04:33]} 10. e5 {[%emt 0:02:08]} Ne4 {[%emt 0:03:52]} 11. Nxe4 {[%emt 0:04:43]} dxe4 {[%emt 0:00:05]} 12. Nd2 {[%emt 0:01:31]} Nd5 {[%emt 0:03:20]} 13. Qe2 {[%emt 0:00:20]} f5 {[%emt 0:00:02]} 14. exf6 {[%emt 0:01:41]} exf6 {[%emt 0:00:13]} 15. Bg2 {[%emt 0:05:22]} O-O {[%emt 0:00:26]} 16. c3 {[%emt 0:05:55]} f5 {[%emt 0:00:40]} 17. g5 {[%emt 0:03:11]} b6 {[%emt 0:00:27]} 18. Qf2 {[%emt 0:00:12]} Ba6 {[%emt 0:03:24]} 19. Bf1 {[%emt 0:00:29]} b5 {[%emt 0:00:24]} 20. Nb3 {[%emt 0:00:28]} bxa4 {[%emt 0:00:37]} 21. Nc5 {[%emt 0:00:32]} Bxf1 {[%emt 0:02:21]} 22. Kxf1 {[%emt 0:03:28]} Qb6 {[%emt 0:00:12]} 23. Nxa4 {[%emt 0:00:14]} Qb5+ {[%emt 0:00:50]} 24. Kg2 {[%emt 0:00:12]} Rfb8 {[%emt 0:00:07]} 25. Rhe1 {[%emt 0:02:09]} Bf8 {[%emt 0:00:17]} 26. Qd2 {[%emt 0:16:39]} Bd6 {[%emt 0:02:15]} 27. Kg3 {[%emt 0:00:46]} Qc4 {[%emt 0:02:35]} 28. Qe2 {[%emt 0:01:26]} Qb3 {[%emt 0:00:37]} 29. Qd1 {[%emt 0:00:15]} Qb7 {[%emt 0:00:22]} 30. Qd2 {[%emt 0:01:33]} Qc7 {[%emt 0:00:09]} 31. Rf1 {[%emt 0:00:31]} Rb3 {[%emt 0:00:20]} 32. Rf2 {[%emt 0:01:34]} Rab8 {[%emt 0:00:14]} 33. Ra2 {[%emt 0:00:39]} Rd8 {[%emt 0:01:24]} 34. Ra1 {[%emt 0:05:14]} Qb8 {[%emt 0:00:36]} 35. h4 {[%emt 0:02:06]} Kf7 {[%emt 0:04:15]} 36. Qe2 {[%emt 0:01:18]} Qb5 {[%emt 0:02:47]} 37. Qd2 {[%emt 0:05:00]} h6 {[%emt 0:01:22]} 38. Nc5 {[%emt 0:02:14]} Bxc5 {[%emt 0:06:19]} 39. dxc5 {[%emt 0:00:02]} h5 {[%emt 0:02:40]} 40. Kh2 {[%emt 0:01:13]} Qb8 {[%emt 0:01:08]} 41. Rd1 {[%emt 0:01:46]} Nxe3 {[%emt 0:01:47]} 42. Qxd8 {[%emt 0:00:05]} Qxd8 {[%emt 0:00:03]} 43. Rxd8 {[%emt 0:00:04]} Ng4+ {[%emt 0:00:05]} 44. Kg3 {[%emt 0:00:03]} Nxf2 {[%emt 0:00:07]} 45. Kxf2 {[%emt 0:00:02]} Rxb2+ {[%emt 0:00:07]} 46. Ke3 {[%emt 0:00:02]} Rc2 {[%emt 0:00:08]} 47. Rd7+ {[%emt 0:00:27]} Kf8 {[%emt 0:00:02]} 48. Ra7 {[%emt 0:01:20]} Rxc3+ {[%emt 0:00:08]} 49. Kd4 {[%emt 0:00:04]} Rd3+ {[%emt 0:00:59]} 50. Ke5 {[%emt 0:00:10]} e3 {[%emt 0:00:11]} 51. Kf6 {[%emt 0:01:00]} Ke8 {[%emt 0:00:04]} 52. Ra8+ {[%emt 0:03:06]} Kd7 {[%emt 0:00:33]} 53. Rxa5 {[%emt 0:00:11]} Rd4 {[%emt 0:00:05]} 54. Ra7+ {[%emt 0:00:19]} Kd8 {[%emt 0:00:21]} 55. Ra2 {[%emt 0:02:04]} Rxf4 {[%emt 0:00:24]} 56. Kxg6 {[%emt 0:00:12]} Rf2 {[%emt 0:00:04]} 57. Ra8+ {[%emt 0:02:45]} Ke7 {[%emt 0:00:02]} 58. Ra7+ {[%emt 0:00:06]} Ke6 {[%emt 0:00:15]} 59. Kxh5 {[%emt 0:00:18]} Rg2 {[%emt 0:02:23]} 60. Kg6 {[%emt 0:01:07]} f4 {[%emt 0:00:07]} 61. h5 {[%emt 0:00:21]} e2 {[%emt 0:00:23]} 62. Ra8 {[%emt 0:02:02]} f3 {[%emt 0:00:06]} 63. h6 {[%emt 0:00:03]} Rh2 {[%emt 0:01:33]} 64. h7 {[%emt 0:00:06]} Kd5 {[%emt 0:00:13]} 65. Re8 {[%emt 0:00:10]} Rh1 {[%emt 0:00:45]} 66. Kg7 {[%emt 0:01:27]} f2 {[%emt 0:00:06]} 67. h8=Q {[%emt 0:00:48]} Rxh8 {[%emt 0:00:05]} 68. Rxe2 {[%emt 0:00:03]} f1=Q {[%emt 0:01:04]} 69. Rd2+ {[%emt 0:00:02]} Kxc5 {[%emt 0:00:07]} 70. Kxh8 {[%emt 0:00:09]} Qc1 {[%emt 0:00:19]} 71. Ra2 {[%emt 0:00:18]} Kb4 {[%emt 0:00:12]} 72. Ra6 {[%emt 0:01:24]} Qc3+ {[%emt 0:00:22]} 0-1

[Event "Marshall CC FIDE Premier January 2024"]
[Site "New York"]
[Date "2024.01.06"]
[Round "2.2"]
[White "Zeltsan, Joseph"]
[Black "Hebbar, Eshaan"]
[Result "1-0"]
[ECO "D02"]
[WhiteElo "2439"]
[BlackElo "2018"]
[Annotator "RC"]
[PlyCount "49"]
[EventDate "2024.01.05"]
[EventType "swiss"]
[EventCountry "USA"]
[SourceTitle "playchess.com"]
[Source "ChessBase"]
[SourceQuality "1"]
[TimeControl "5400+30"]

1. Nf3 {[%emt 0:00:09]} d5 {[%emt 0:00:08]} 2. g3 {[%emt 0:00:06]} Nf6 {[%emt 0:00:22]} 3. Bg2 {[%emt 0:00:03]} c5 {[%emt 0:00:49]} 4. O-O {[%emt 0:00:03]} Nc6 {[%emt 0:01:11]} 5. d4 {[%emt 0:00:06]} Bg4 {[%emt 0:03:55]} 6. c4 {[%emt 0:06:21]} Bxf3 {[%emt 0:06:17]} 7. Bxf3 {[%emt 0:00:42]} Nxd4 {[%emt 0:00:20]} 8. Bg2 {[%emt 0:00:06]} e6 {[%emt 0:12:39]} 9. Nc3 {[%emt 0:00:02]} dxc4 {[%emt 0:01:57]} 10. Bxb7 {[%emt 0:01:08]} Rb8 {[%emt 0:00:06]} 11. Bg2 {[%emt 0:02:00]} Qd7 {[%emt 0:03:17]} 12. Bf4 {[%emt 0:05:28]} Rxb2 {[%emt 0:06:36]} 13. e3 {[%emt 0:02:51]} Nf5 {[%emt 0:05:57]} 14. Rb1 {[%emt 0:04:54]} Rb6 {[%emt 0:23:34]} 15. Qf3 {[%emt 0:06:38]} Be7 {[%emt 0:07:00]} 16. Qa8+ {[%emt 0:03:22]} Qd8 {[%emt 0:00:02]} 17. Qxa7 {[%emt 0:00:20]} Rb4 {[%emt 0:11:30]} 18. a3 {[%emt 0:02:02]} Rb3 {[%emt 0:00:36]} 19. Qa4+ {[%emt 0:00:20]} Kf8 {[%emt 0:03:36]} 20. Qxc4 {[%emt 0:00:16]} Rxb1 {[%emt 0:00:07]} 21. Rxb1 {[%emt 0:00:03]} Nd7 {[%emt 0:03:02]} 22. Rd1 {[%emt 0:09:09]} Qc8 {[%emt 0:01:57]} 23. Qa4 {[%emt 0:02:18]} Nb6 {[%emt 0:01:37]} 24. Qa7 {[%emt 0:00:57]} Nc4 {[%emt 0:01:09]} 25. Rb1 {[%emt 0:00:48]} 1-0